bitfinex-derivatives/quotes_BTCF0:USTF0_20250823
["timestamp","ask_amount","ask_price","bid_price","bid_amount"]
[1755984693275,4.87797437,115170.0,115160.0,0.346879]
[1755984705990,4.87797437,115170.0,115160.0,0.369239]
[1755984706190,4.87797437,115170.0,115160.0,0.414919]
[1755984706684,4.15637437,115170.0,115160.0,0.414919]
[1755984706892,4.87797437,115170.0,115160.0,0.414919]
[1755984707190,4.87797437,115170.0,115160.0,0.401119]
[1755984707392,4.87797437,115170.0,115160.0,0.369239]
[1755984719097,4.89888614,115170.0,115160.0,0.369239]
[1755984719396,4.89888614,115170.0,115160.0,0.30666]
[1755984719698,4.87797437,115170.0,115160.0,0.369239]
[1755984727505,4.15637437,115170.0,115160.0,0.369239]
[1755984727900,4.87797437,115170.0,115160.0,0.369239]
[1755984730307,4.08761437,115170.0,115160.0,0.369239]
[1755984730498,4.87525437,115170.0,115160.0,0.369239]
[1755984731802,4.15365437,115170.0,115160.0,0.369239]
[1755984732005,4.87525437,115170.0,115160.0,0.369239]
[1755984733111,4.8961545,115170.0,115160.0,0.30666]
[1755984733815,4.1085145,115170.0,115160.0,0.30666]
[1755984734113,4.8960745,115170.0,115160.0,0.30666]
[1755984736714,4.1085145,115170.0,115160.0,0.30666]
[1755984737008,4.8959145,115170.0,115160.0,0.30666]
[1755984738710,4.1743145,115170.0,115160.0,0.30666]
[1755984738910,4.8959145,115170.0,115160.0,0.30666]
[1755984740708,4.54307829,115170.0,115160.0,0.30666]
[1755984740907,4.5622187,115170.0,115160.0,0.30666]
[1755984743114,4.54131857,115170.0,115160.0,0.369239]
[1755984751227,3.75391857,115170.0,115160.0,0.402119]
[1755984751428,3.56367861,115170.0,115160.0,0.402119]
[1755984751622,4.54111857,115170.0,115160.0,0.402119]
[1755984751819,4.56192476,115170.0,115160.0,0.33954]
[1755984752326,3.77472476,115170.0,115160.0,0.33954]
[1755984752528,4.56192476,115170.0,115160.0,0.33954]
[1755984753430,4.56196476,115170.0,115160.0,0.33954]
[1755984753729,3.5845248,115170.0,115160.0,0.33954]
[1755984753923,4.56196476,115170.0,115160.0,0.33954]
[1755984755128,3.84036476,115170.0,115160.0,0.33954]
[1755984755331,3.5845235,115170.0,115160.0,0.33954]
[1755984755531,4.56196346,115170.0,115160.0,0.33954]
[1755984756825,4.56196346,115170.0,115160.0,0.35315]
[1755984757539,4.56196346,115170.0,115160.0,0.36912]
[1755984761141,4.54115857,115170.0,115160.0,0.36912]
[1755984761841,4.39695857,115170.0,115160.0,0.36912]
[1755984763437,4.39695857,115170.0,115160.0,0.431699]
[1755984767444,4.39695857,115170.0,115160.0,0.385209]
[1755984773038,4.39695857,115170.0,115160.0,0.369239]
[1755984774146,4.39695857,115170.0,115160.0,0.346879]
[1755984775742,4.39695857,115170.0,115160.0,0.2843]
[1755984777941,4.39695857,115170.0,115160.0,0.346879]
[1755984778647,4.41776171,115170.0,115160.0,0.2843]
[1755984779048,4.39695857,115170.0,115160.0,0.2843]
[1755984782150,4.41776115,115170.0,115160.0,0.2843]
[1755984782848,4.39695857,115170.0,115160.0,0.2843]
[1755984783044,4.41776112,115170.0,115160.0,0.2843]
[1755984788748,3.69616112,115170.0,115160.0,0.2843]
[1755984788949,4.41776112,115170.0,115160.0,0.2843]
[1755984792854,4.56206112,115170.0,115160.0,0.2843]
[1755984793061,4.39695857,115170.0,115160.0,0.346879]
[1755984803267,4.54125857,115170.0,115160.0,0.346879]
[1755984803470,4.39695857,115170.0,115160.0,0.346879]
[1755984806484,4.39695857,115170.0,115160.0,0.313579]
[1755984807683,3.60971857,115170.0,115160.0,0.313579]
[1755984807881,4.39687857,115170.0,115160.0,0.338299]
[1755984808081,4.39687857,115170.0,115160.0,0.313579]
[1755984809783,3.60971857,115170.0,115160.0,0.313579]
[1755984809986,4.39687857,115170.0,115160.0,0.313579]
[1755984814887,4.41768279,115170.0,115160.0,0.251]
[1755984818490,3.63052279,115170.0,115160.0,0.251]
[1755984818689,4.41764279,115170.0,115160.0,0.251]
[1755984823687,4.56194279,115170.0,115160.0,0.251]
[1755984823989,4.41764279,115170.0,115160.0,0.251]
[1755984828695,4.41764279,115170.0,115160.0,0.27572]
[1755984833197,4.39683857,115170.0,115160.0,0.27572]
[1755984834599,4.39683857,115170.0,115160.0,0.338299]
[1755984840002,4.39683857,115170.0,115160.0,0.347499]
[1755984845308,3.60971857,115170.0,115160.0,0.369179]
[1755984845607,4.39675857,115170.0,115160.0,0.369179]
[1755984846008,4.39675857,115170.0,115160.0,0.403469]
[1755984850110,3.67515857,115170.0,115160.0,0.403469]
[1755984850311,4.39675857,115170.0,115160.0,0.403469]
[1755984853905,3.60971857,115170.0,115160.0,0.403469]
[1755984854412,4.39671857,115170.0,115160.0,0.403469]
[1755984854602,4.39671857,115170.0,115160.0,0.369179]
[1755984856313,4.41734138,115170.0,115160.0,0.3066]
[1755984859913,4.39671857,115170.0,115160.0,0.369179]
[1755984860915,4.39720837,115170.0,115160.0,0.369179]
[1755984861410,3.67560837,115170.0,115160.0,0.369179]
[1755984861614,4.39720837,115170.0,115160.0,0.369179]
[1755984861815,3.67560837,115170.0,115160.0,0.369179]
[1755984862115,4.39720837,115170.0,115160.0,0.369179]
[1755984865223,4.39716837,115170.0,115160.0,0.369179]
[1755984873222,4.41782504,115170.0,115160.0,0.3066]
[1755984875218,4.56212504,115170.0,115160.0,0.3066]
[1755984875423,4.41782504,115170.0,115160.0,0.3066]
[1755984875617,3.69622504,115170.0,115160.0,0.3066]
[1755984875818,4.41782504,115170.0,115160.0,0.3066]
[1755984878120,4.41782516,115170.0,115160.0,0.3066]
[1755984883235,4.39716837,115170.0,115160.0,0.369179]
[1755984885929,4.41782199,115170.0,115160.0,0.3066]
[1755984891936,4.39716837,115170.0,115160.0,0.369179]
[1755984894438,3.67556837,115170.0,115160.0,0.369179]
[1755984894638,4.39716837,115170.0,115160.0,0.369179]
[1755984894936,4.39700837,115170.0,115160.0,0.369179]
[1755984896446,3.67540837,115170.0,115160.0,0.369179]
[1755984896638,4.39700837,115170.0,115160.0,0.369179]
[1755984898545,3.67540837,115170.0,115160.0,0.369179]
[1755984898736,4.39700837,115170.0,115160.0,0.369179]
[1755984900460,4.39696837,115170.0,115160.0,0.402259]
[1755984902160,3.61020837,115170.0,115160.0,0.402259]
[1755984902358,4.39696837,115170.0,115160.0,0.402259]
[1755984902659,3.61020837,115170.0,115160.0,0.402259]
[1755984902862,4.39696837,115170.0,115160.0,0.402259]
[1755984907166,3.41948841,115170.0,115160.0,0.402259]
[1755984907360,4.39692837,115170.0,115160.0,0.402259]
[1755984912961,4.39692837,115170.0,115160.0,0.416969]
[1755984913161,4.41777995,115170.0,115160.0,0.35439]
[1755984916162,4.56207995,115170.0,115160.0,0.35439]
[1755984917866,3.84047995,115170.0,115160.0,0.35439]
[1755984918170,4.56207995,115170.0,115160.0,0.35439]
[1755984919474,3.84047995,115170.0,115160.0,0.35439]
[1755984919673,4.56207995,115170.0,115160.0,0.35439]
[1755984923174,4.54122837,115170.0,115160.0,0.33968]
[1755984923473,3.81962837,115170.0,115160.0,0.402259]
[1755984923674,4.54122837,115170.0,115160.0,0.402259]
[1755984924579,4.54122837,115170.0,115160.0,0.369179]
[1755984931581,3.81962837,115170.0,115160.0,0.369179]
[1755984931766,4.54122837,115170.0,115160.0,0.369179]
[1755984932877,3.75450837,115170.0,115160.0,0.369179]
[1755984933180,4.54114837,115170.0,115160.0,0.369179]
[1755984940781,3.81954837,115170.0,115160.0,0.369179]
[1755984940995,4.54114837,115170.0,115160.0,0.369179]
[1755984941686,3.81954837,115170.0,115160.0,0.369179]
[1755984941884,4.54114837,115170.0,115160.0,0.369179]
[1755984943689,4.56189081,115170.0,115160.0,0.3066]
[1755984944091,4.54114837,115170.0,115160.0,0.3066]
[1755984944390,3.75450837,115170.0,115160.0,0.3066]
[1755984944590,4.54110837,115170.0,115160.0,0.3066]
[1755984944785,3.81950837,115170.0,115160.0,0.3066]
[1755984944986,4.54110837,115170.0,115160.0,0.3066]
[1755984946793,4.54110837,115170.0,115160.0,0.369179]
[1755984947793,4.54110837,115170.0,115160.0,0.402899]
[1755984949793,3.81950837,115170.0,115160.0,0.369179]
[1755984949994,4.5618508,115170.0,115160.0,0.28492]
[1755984952000,4.5618508,115170.0,115160.0,0.251]
[1755984963937,4.5618508,115170.0,115160.0,0.2758]
[1755984964626,4.5618508,115170.0,115160.0,0.251]
[1755984965234,3.7752508,115170.0,115160.0,0.251]
[1755984965533,4.5618108,115170.0,115160.0,0.2758]
[1755984970835,4.5618108,115170.0,115160.0,0.28576]
[1755984977342,3.7752508,115170.0,115160.0,0.28576]
[1755984977542,4.5617708,115170.0,115160.0,0.28576]
[1755984979542,3.8401708,115170.0,115160.0,0.28576]
[1755984979739,4.5617708,115170.0,115160.0,0.28576]
[1755984980839,4.56165207,115170.0,115160.0,0.28576]
[1755984987046,4.56161207,115170.0,115160.0,0.28576]
[1755984987745,4.56161207,115170.0,115160.0,0.251]
[1755984988144,4.56161207,115170.0,115160.0,0.27585]
[1755984994145,3.84001207,115170.0,115160.0,0.27585]
[1755984994449,4.56161207,115170.0,115160.0,0.27585]
[1755984994644,3.84001207,115170.0,115160.0,0.27585]
[1755984994853,4.56161207,115170.0,115160.0,0.27585]
[1755984997748,3.84001207,115170.0,115160.0,0.27585]
[1755984997952,4.56161207,115170.0,115160.0,0.28568]
[1755984998649,4.56161207,115170.0,115160.0,0.251]
[1755984999456,0.2703,115160.0,115150.0,0.22017]
[1755984999655,2.41568239,115160.0,115150.0,0.22017]
[1755984999855,2.39493996,115160.0,115150.0,0.22017]
[1755985000157,2.39645192,115160.0,115150.0,0.22017]
[1755985000451,2.50345792,115160.0,115150.0,0.22017]
[1755985000651,2.50645792,115160.0,115150.0,0.22117]
[1755985001150,2.57503024,115160.0,115150.0,0.22117]
[1755985001460,2.57503024,115160.0,115150.0,0.18937]
[1755985001955,2.57503024,115160.0,115150.0,0.22117]
[1755985002551,2.93583024,115160.0,115150.0,0.22117]
[1755985003449,2.95695899,115160.0,115150.0,0.22117]
[1755985003657,2.95695899,115160.0,115150.0,0.17543]
[1755985004659,2.93583024,115160.0,115150.0,0.17543]
[1755985007659,2.93583024,115160.0,115150.0,0.20723]
[1755985012750,2.93583024,115160.0,115150.0,0.22117]
[1755985015064,4.58779024,115160.0,115150.0,0.22117]
[1755985020657,3.86619024,115160.0,115150.0,0.22117]
[1755985020869,4.58779024,115160.0,115150.0,0.22117]
[1755985021670,4.58779024,115160.0,115150.0,0.18937]
[1755985022271,4.58779024,115160.0,115150.0,0.17543]
[1755985022669,3.86619024,115160.0,115150.0,0.17543]
[1755985022970,4.58779024,115160.0,115150.0,0.2096]
[1755985025673,4.58779024,115160.0,115150.0,0.17543]
[1755985026677,4.22699024,115160.0,115150.0,0.17543]
[1755985026877,4.58779024,115160.0,115150.0,0.17543]
[1755985027780,3.86619024,115160.0,115150.0,0.17543]
[1755985027978,4.58779024,115160.0,115150.0,0.17543]
[1755985032889,4.60883338,115160.0,115150.0,0.17543]
[1755985039099,4.60883338,115160.0,115150.0,0.15898]
[1755985042102,3.82243338,115160.0,115150.0,0.15898]
[1755985042401,4.60871338,115160.0,115150.0,0.15898]
[1755985048005,4.58767024,115160.0,115150.0,0.15898]
[1755985048209,4.60867064,115160.0,115150.0,0.15898]
[1755985054609,3.82239064,115160.0,115150.0,0.15898]
[1755985054806,4.60863064,115160.0,115150.0,0.15898]
[1755985059812,3.82239064,115160.0,115150.0,0.15898]
[1755985060012,4.60863064,115160.0,115150.0,0.15898]
[1755985063214,4.58763024,115160.0,115150.0,0.15898]
[1755985065618,4.60863131,115160.0,115150.0,0.15898]
[1755985065807,4.60863131,115160.0,115150.0,0.13568]
[1755985069413,3.88703131,115160.0,115150.0,0.13568]
[1755985069614,4.60863131,115160.0,115150.0,0.13568]
[1755985079322,4.60863131,115160.0,115150.0,0.11083]
[1755985079516,4.60863131,115160.0,115150.0,0.101]
[1755985080419,0.1494174,115150.0,115140.0,0.05067123]
[1755985080617,1.95039845,115150.0,115140.0,0.01832123]
[1755985080813,0.1125349,115140.0,115130.0,0.06724457]
[1755985081013,1.80691999,115140.0,115130.0,0.10207457]
[1755985081418,1.80691999,115140.0,115130.0,0.06724457]
[1755985081618,1.80691999,115140.0,115130.0,0.10207457]
[1755985081926,1.78592488,115140.0,115130.0,0.10207457]
[1755985082519,1.78592488,115140.0,115130.0,0.13944457]
[1755985082925,1.78592488,115140.0,115130.0,0.09046457]
[1755985083125,1.78692488,115140.0,115130.0,0.09146457]
[1755985083327,1.78692488,115140.0,115130.0,0.12629457]
[1755985083626,1.78692488,115140.0,115130.0,0.14144457]
[1755985085226,1.89393088,115140.0,115130.0,0.14144457]
[1755985085431,1.4052109,115140.0,115130.0,0.14144457]
[1755985085621,1.89393088,115140.0,115130.0,0.14144457]
[1755985088333,3.54601088,115140.0,115130.0,0.14144457]
[1755985089330,3.54601088,115140.0,115130.0,0.02167457]
[1755985090130,3.54601088,115140.0,115130.0,0.07724457]
[1755985090330,3.54601088,115140.0,115130.0,0.11207457]
[1755985091833,3.18521088,115140.0,115130.0,0.11207457]
[1755985092034,3.90681088,115140.0,115130.0,0.11207457]
[1755985092437,3.18521088,115140.0,115130.0,0.11207457]
[1755985092736,3.90681088,115140.0,115130.0,0.11207457]
[1755985094935,3.90681088,115140.0,115130.0,0.07724457]
[1755985102538,2.6964909,115140.0,115130.0,0.07724457]
[1755985102842,3.90681088,115140.0,115130.0,0.07724457]
[1755985105045,3.90689088,115140.0,115130.0,0.07724457]
[1755985107148,3.18529088,115140.0,115130.0,0.07724457]
[1755985107448,3.90689088,115140.0,115130.0,0.07724457]
[1755985108048,3.12065088,115140.0,115130.0,0.07724457]
[1755985108234,3.90689088,115140.0,115130.0,0.07724457]
[1755985109047,3.12065088,115140.0,115130.0,0.07724457]
[1755985109345,3.14168957,115140.0,115130.0,0.07724457]
[1755985109546,3.92792957,115140.0,115130.0,0.07724457]
[1755985110345,3.43920959,115140.0,115130.0,0.07724457]
[1755985110541,3.90689088,115140.0,115130.0,0.07724457]
[1755985110748,3.18529088,115140.0,115130.0,0.07724457]
[1755985111044,3.90689088,115140.0,115130.0,0.07724457]
[1755985111645,3.18529088,115140.0,115130.0,0.07724457]
[1755985111847,3.90689088,115140.0,115130.0,0.07724457]
[1755985112541,3.92792909,115140.0,115130.0,0.05406457]
[1755985114944,3.14168909,115140.0,115130.0,0.05406457]
[1755985115146,3.92792909,115140.0,115130.0,0.05406457]
[1755985119453,3.20632909,115140.0,115130.0,0.05406457]
[1755985119750,3.92792909,115140.0,115130.0,0.05406457]
[1755985122654,4.07222909,115140.0,115130.0,0.05406457]
[1755985122855,3.92792909,115140.0,115130.0,0.05406457]
[1755985123454,3.90689088,115140.0,115130.0,0.05406457]
[1755985124655,3.92792882,115140.0,115130.0,0.05406457]
[1755985125755,3.90689088,115140.0,115130.0,0.05406457]
[1755985126651,3.90689088,115140.0,115130.0,0.02167457]
[1755985130268,3.92792853,115140.0,115130.0,0.02167457]
[1755985138674,3.18529088,115140.0,115130.0,0.02167457]
[1755985138973,3.90689088,115140.0,115130.0,0.02167457]
[1755985141677,3.18529088,115140.0,115130.0,0.02167457]
[1755985141879,3.90689088,115140.0,115130.0,0.02167457]
[1755985142983,4.05119088,115140.0,115130.0,0.02167457]
[1755985143283,4.07222298,115140.0,115130.0,0.02167457]
[1755985143480,3.92792298,115140.0,115130.0,0.02167457]
[1755985143783,3.92792298,115140.0,115130.0,0.04452457]
[1755985143983,3.92792298,115140.0,115130.0,0.05382457]
[1755985149087,3.92792298,115140.0,115130.0,0.04452457]
[1755985152886,4.07222298,115140.0,115130.0,0.04452457]
[1755985153094,3.92792298,115140.0,115130.0,0.04452457]
[1755985156799,3.20632298,115140.0,115130.0,0.04452457]
[1755985157095,3.92792298,115140.0,115130.0,0.04452457]
[1755985161102,3.90689088,115140.0,115130.0,0.04452457]
[1755985161493,3.18529088,115140.0,115130.0,0.04452457]
[1755985161695,3.90689088,115140.0,115130.0,0.04452457]
[1755985162503,3.18529088,115140.0,115130.0,0.04452457]
[1755985162705,3.90689088,115140.0,115130.0,0.04452457]
[1755985167604,3.90689088,115140.0,115130.0,0.02167457]
[1755985167903,3.90689088,115140.0,115130.0,0.04566457]
[1755985169205,3.92796529,115140.0,115130.0,0.04566457]
[1755985173508,4.07226529,115140.0,115130.0,0.04566457]
[1755985173709,3.92796529,115140.0,115130.0,0.04566457]
[1755985193710,4.07226529,115140.0,115130.0,0.04566457]
[1755985193914,3.92796529,115140.0,115130.0,0.04566457]
[1755985194621,3.92800525,115140.0,115130.0,0.04566457]
[1755985196619,3.90689088,115140.0,115130.0,0.04566457]
[1755985199421,3.9280052,115140.0,115130.0,0.04566457]
[1755985200315,3.1417652,115140.0,115130.0,0.02167457]
[1755985200512,4.56074518,115140.0,115130.0,7e-08]
[1755985200719,4.56225738,115140.0,115130.0,7e-08]
[1755985200913,4.58168511,115140.0,115130.0,7e-08]
[1755985201119,1.11794256,115130.0,115120.0,0.01029742]
[1755985201315,0.0868901,115120.0,115110.0,0.02619478]
[1755985201520,2.26483779,115120.0,115110.0,0.33619478]
[1755985201916,2.26483779,115120.0,115110.0,0.36052478]
[1755985202323,2.26483779,115120.0,115110.0,0.09052478]
[1755985202625,2.27347526,115120.0,115110.0,0.09052478]
[1755985203520,2.27347526,115120.0,115110.0,0.10070478]
[1755985203721,2.27447526,115120.0,115110.0,0.10270478]
[1755985204523,2.27447526,115120.0,115110.0,0.06270478]
[1755985204724,2.27447526,115120.0,115110.0,0.26270478]
[1755985205232,2.38148126,115120.0,115110.0,0.26270478]
[1755985205425,2.38148126,115120.0,115110.0,0.25352478]
[1755985206532,2.38148126,115120.0,115110.0,0.26270478]
[1755985209430,2.38148126,115120.0,115110.0,0.25352478]
[1755985211040,1.59552126,115120.0,115110.0,0.25352478]
[1755985211228,2.38148126,115120.0,115110.0,0.26270478]
[1755985213339,4.03388126,115120.0,115110.0,0.26270478]
[1755985214732,4.03388126,115120.0,115110.0,0.25352478]
[1755985217944,4.03388126,115120.0,115110.0,0.26270478]
[1755985218441,4.03388126,115120.0,115110.0,0.25352478]
[1755985219039,4.03388126,115120.0,115110.0,0.22919478]
[1755985219245,4.17818126,115120.0,115110.0,0.02919478]
[1755985219838,4.17818126,115120.0,115110.0,0.01122478]
[1755985220235,4.17818126,115120.0,115110.0,0.01022478]
[1755985220749,4.17818126,115120.0,115110.0,0.00922478]
[1755985222141,4.42818126,115120.0,115110.0,0.00922478]
[1755985223540,4.81003444,115120.0,115110.0,0.00922478]
[1755985228947,4.78898126,115120.0,115110.0,0.00922478]
[1755985229149,4.81017202,115120.0,115110.0,0.00922478]
[1755985229649,4.81017202,115120.0,115110.0,8e-08]
[1755985229950,4.56017202,115120.0,115110.0,8e-08]
[1755985230450,3.77421202,115120.0,115110.0,8e-08]
[1755985230654,4.56021202,115120.0,115110.0,8e-08]
[1755985231851,4.56017202,115120.0,115110.0,0.02257008]
[1755985232243,0.1254873,115110.0,115100.0,0.14214081]
[1755985232443,1.76096728,115110.0,115100.0,0.14214081]
[1755985233454,1.76196728,115110.0,115100.0,0.14414081]
[1755985234256,1.76196728,115110.0,115100.0,0.16671081]
[1755985234454,1.90626728,115110.0,115100.0,0.16671081]
[1755985235257,2.01327328,115110.0,115100.0,0.16671081]
[1755985235752,2.01327328,115110.0,115100.0,0.12027081]
[1755985236656,2.01327328,115110.0,115100.0,0.06707081]
[1755985237155,1.22731328,115110.0,115100.0,0.08964081]
[1755985237345,2.01331328,115110.0,115100.0,0.08964081]
[1755985239256,2.01331328,115110.0,115100.0,0.06707081]
[1755985240974,2.01331328,115110.0,115100.0,0.09901081]
[1755985243951,2.37411328,115110.0,115100.0,0.09901081]
[1755985244357,1.58811328,115110.0,115100.0,0.09901081]
[1755985244551,2.37415328,115110.0,115100.0,0.09901081]
[1755985251661,2.37415328,115110.0,115100.0,0.12027081]
[1755985251662,2.39535372,115110.0,115100.0,0.12027081]
[1755985258569,1.67375372,115110.0,115100.0,0.12027081]
[1755985258770,2.39535372,115110.0,115100.0,0.12027081]
[1755985259570,1.60931372,115110.0,115100.0,0.12027081]
[1755985259764,2.39535372,115110.0,115100.0,0.12027081]
[1755985260371,1.60931372,115110.0,115100.0,0.12027081]
[1755985260672,0.9809433,115110.0,115100.0,0.43398081]
[1755985260866,1.46966328,115110.0,115100.0,0.79478081]
[1755985261061,0.108006,115110.0,115100.0,0.95989782]
[1755985261263,1.19776998,115110.0,115100.0,1.4486178]
[1755985261559,0.48871998,115110.0,115100.0,1.4486178]
[1755985261761,1.24975998,115110.0,115100.0,1.7386178]
[1755985261963,0.8729373,115110.0,115100.0,1.66040569]
[1755985262161,0.8729373,115110.0,115100.0,1.73852005]
[1755985262774,1.36165728,115110.0,115100.0,1.73852005]
[1755985263071,0.57561728,115110.0,115100.0,1.73852005]
[1755985263265,1.36165728,115110.0,115100.0,1.73852005]
[1755985263460,1.46866328,115110.0,115100.0,1.73852005]
[1755985263768,1.46866328,115110.0,115100.0,1.66040569]
[1755985263964,0.68262328,115110.0,115100.0,1.66040569]
[1755985264170,1.46862328,115110.0,115100.0,1.66889476]
[1755985264672,0.68262328,115110.0,115100.0,1.66889476]
[1755985264873,0.1939033,115110.0,115100.0,1.66040569]
[1755985265076,0.9799033,115110.0,115100.0,1.66040569]
[1755985265678,0.1939033,115110.0,115100.0,1.66040569]
[1755985265977,0.9799033,115110.0,115100.0,1.66040569]
[1755985266370,0.1939033,115110.0,115100.0,1.66040569]
[1755985266680,0.9798233,115110.0,115100.0,1.73852005]
[1755985267381,0.9798233,115110.0,115100.0,1.24980007]
[1755985268878,0.892926,115110.0,115100.0,1.24980007]
[1755985269372,0.892926,115110.0,115100.0,1.73852005]
[1755985271580,0.107006,115110.0,115100.0,1.73852005]
[1755985271779,0.892886,115110.0,115100.0,1.73852005]
[1755985272982,0.892886,115110.0,115100.0,1.24980007]
[1755985273181,0.892886,115110.0,115100.0,1.73852005]
[1755985273683,0.917876,115110.0,115100.0,1.73852005]
[1755985274482,0.131996,115110.0,115100.0,1.73852005]
[1755985274682,0.917836,115110.0,115100.0,1.73852005]
[1755985275880,0.131996,115110.0,115100.0,1.73852005]
[1755985276080,0.917796,115110.0,115100.0,1.73852005]
[1755985277485,0.917796,115110.0,115100.0,2.09932005]
[1755985279372,0.131996,115110.0,115100.0,2.09932005]
[1755985279578,0.917756,115110.0,115100.0,2.09932005]
[1755985279779,0.131996,115110.0,115100.0,2.09932005]
[1755985279983,0.917756,115110.0,115100.0,2.09932005]
[1755985280787,0.141336,115110.0,115100.0,2.09932005]
[1755985280982,0.927096,115110.0,115100.0,2.09932005]
[1755985281289,0.141336,115110.0,115100.0,2.09932005]
[1755985281488,0.927056,115110.0,115100.0,2.09932005]
[1755985283180,0.948906,115110.0,115100.0,2.09932005]
[1755985283380,0.927056,115110.0,115100.0,2.09932005]
[1755985284088,0.141336,115110.0,115100.0,2.09932005]
[1755985284283,0.927056,115110.0,115100.0,2.09932005]
[1755985284790,0.948906,115110.0,115100.0,2.09932005]
[1755985284984,0.163186,115110.0,115100.0,2.09932005]
[1755985285190,0.948906,115110.0,115100.0,2.09932005]
[1755985286185,0.948906,115110.0,115100.0,1.61060007]
[1755985286391,0.948906,115110.0,115100.0,2.02120569]
[1755985286392,0.981096,115110.0,115100.0,2.02120569]
[1755985286592,1.010716,115110.0,115100.0,2.02120569]
[1755985287485,1.010716,115110.0,115100.0,2.1306867]
[1755985287991,1.010716,115110.0,115100.0,1.64196672]
[1755985288184,1.010716,115110.0,115100.0,2.1306867]
[1755985288589,1.010716,115110.0,115100.0,1.4090867]
[1755985288790,1.010716,115110.0,115100.0,2.1306867]
[1755985289899,1.010716,115110.0,115100.0,1.8806867]
[1755985290893,1.010676,115110.0,115100.0,1.8806867]
[1755985292584,0.224516,115110.0,115100.0,1.8806867]
[1755985292788,1.010196,115110.0,115100.0,1.8806867]
[1755985293795,0.224516,115110.0,115100.0,1.8806867]
[1755985293997,1.010196,115110.0,115100.0,1.8806867]
[1755985295796,0.224516,115110.0,115100.0,1.8806867]
[1755985296001,1.010156,115110.0,115100.0,1.8806867]
[1755985298696,0.224516,115110.0,115100.0,1.8806867]
[1755985298901,1.010156,115110.0,115100.0,1.8806867]
[1755985299400,1.010156,115110.0,115100.0,1.77120569]
[1755985299603,1.010156,115110.0,115100.0,1.88073441]
[1755985301505,0.224516,115110.0,115100.0,1.88073441]
[1755985301703,1.010156,115110.0,115100.0,1.77120569]
[1755985302099,1.010116,115110.0,115100.0,1.88073806]
[1755985306509,1.010116,115110.0,115100.0,1.85816806]
[1755985310306,0.224516,115110.0,115100.0,1.85816806]
[1755985310506,1.010116,115110.0,115100.0,1.85816806]
[1755985311111,0.224516,115110.0,115100.0,1.85816806]
[1755985311306,1.010076,115110.0,115100.0,1.85816806]
[1755985312416,1.010076,115110.0,115100.0,1.74863569]
[1755985320325,0.224516,115110.0,115100.0,1.74863569]
[1755985320530,1.010076,115110.0,115100.0,1.74863569]
[1755985321330,0.224516,115110.0,115100.0,1.74863569]
[1755985321629,1.010076,115110.0,115100.0,1.8581627]
[1755985325124,1.010076,115110.0,115100.0,1.74863569]
[1755985332732,1.010076,115110.0,115100.0,1.90399422]
[1755985333539,1.010076,115110.0,115100.0,1.74863569]
[1755985335542,0.192806,115110.0,115100.0,1.74863569]
[1755985335740,0.163186,115110.0,115100.0,1.74863569]
[1755985335934,0.0962,115120.0,115110.0,0.1885673]
[1755985336136,0.0962,115120.0,115110.0,1.46763742]
[1755985336440,0.88168,115120.0,115110.0,1.46763742]
[1755985337538,0.88268,115120.0,115110.0,1.46863742]
[1755985337842,0.90747,115120.0,115110.0,1.46863742]
[1755985339144,1.014476,115120.0,115110.0,1.46863742]
[1755985339346,1.014476,115120.0,115110.0,1.35908728]
[1755985340042,1.014476,115120.0,115110.0,1.42919766]
[1755985341348,0.228996,115120.0,115110.0,1.42919766]
[1755985341541,1.014436,115120.0,115110.0,1.42919766]
[1755985342445,1.014436,115120.0,115110.0,1.06839766]
[1755985342647,0.228996,115120.0,115110.0,1.42919766]
[1755985342837,1.014436,115120.0,115110.0,1.42919766]
[1755985344647,1.014436,115120.0,115110.0,1.53869738]
[1755985345446,1.014436,115120.0,115110.0,1.17789738]
[1755985345646,1.014436,115120.0,115110.0,1.53869738]
[1755985346649,0.228996,115120.0,115110.0,1.53869738]
[1755985346838,1.014436,115120.0,115110.0,1.53869738]
[1755985347748,1.014436,115120.0,115110.0,1.0499774]
[1755985347948,1.014436,115120.0,115110.0,1.53869738]
[1755985349351,0.228996,115120.0,115110.0,1.53869738]
[1755985349649,1.014396,115120.0,115110.0,1.53869738]
[1755985350152,0.228996,115120.0,115110.0,1.53869738]
[1755985350452,1.014396,115120.0,115110.0,1.42919766]
[1755985350650,0.228996,115120.0,115110.0,1.42919766]
[1755985350850,1.014396,115120.0,115110.0,1.42919766]
[1755985352354,0.228996,115120.0,115110.0,1.42919766]
[1755985352546,1.014396,115120.0,115110.0,1.42919766]
[1755985353347,1.014396,115120.0,115110.0,1.5386902]
[1755985353348,0.228996,115120.0,115110.0,1.5386902]
[1755985353548,1.014396,115120.0,115110.0,1.5386902]
[1755985354255,0.228996,115120.0,115110.0,1.5386902]
[1755985354460,1.014396,115120.0,115110.0,1.5386902]
[1755985354652,0.228996,115120.0,115110.0,1.5386902]
[1755985354852,1.014396,115120.0,115110.0,1.5386902]
[1755985356758,1.014396,115120.0,115110.0,1.1778902]
[1755985356962,1.014396,115120.0,115110.0,1.5386902]
[1755985357361,0.228996,115120.0,115110.0,1.5386902]
[1755985357557,1.014396,115120.0,115110.0,1.5386902]
[1755985357753,0.196266,115120.0,115110.0,1.5386902]
[1755985357954,0.967226,115120.0,115110.0,1.5386902]
[1755985358553,1.000416,115120.0,115110.0,1.5386902]
[1755985358861,1.014456,115120.0,115110.0,1.5386902]
[1755985360664,0.229096,115120.0,115110.0,1.5386902]
[1755985360861,1.014456,115120.0,115110.0,1.5386902]
[1755985364867,1.014456,115120.0,115110.0,1.1778902]
[1755985365167,1.014456,115120.0,115110.0,1.5386902]
[1755985367267,0.229096,115120.0,115110.0,1.5386902]
[1755985367572,1.014416,115120.0,115110.0,1.5386902]
[1755985367765,0.981226,115120.0,115110.0,1.5386902]
[1755985367964,1.014416,115120.0,115110.0,1.5386902]
[1755985368368,1.014416,115120.0,115110.0,1.42919766]
[1755985369378,0.229096,115120.0,115110.0,1.42919766]
[1755985369577,1.014416,115120.0,115110.0,1.42919766]
[1755985373581,1.014416,115120.0,115110.0,1.53865934]
[1755985373876,1.014376,115120.0,115110.0,1.53865934]
[1755985383082,0.981146,115120.0,115110.0,1.53865934]
[1755985383288,1.015376,115120.0,115110.0,1.4468798]
[1755985385888,1.015376,115120.0,115110.0,1.60223833]
[1755985386690,1.015376,115120.0,115110.0,1.4468798]
[1755985389092,1.015376,115120.0,115110.0,1.60223833]
[1755985390494,1.015376,115120.0,115110.0,1.24143833]
[1755985390694,1.015376,115120.0,115110.0,1.96303833]